Workbook

Sheet Averaging Calculator
D2: Enter values in the salmon colored fields to calculate the weighted average of up to 3 components.
B4: R-Value - Weighted Average | H4: Ceiling Height - Weighted Average
B5: Column A | C5: Column B | H5: Column A | I5: Column B
B6: Building Component 1 R-value | C6: Building Component 1 Area | D6: Building Component 1 UA | H6: 1st Ceiling Height | I6: Floor Area | J6: Building Area 1 Volume
B7: 17 | C7: 957 | D7: =C7/IF(B7=0,1,B7) -> 56.29411765 | F7: Assembly R-Value | H7: 8 | I7: 1000 | J7: =I7*H7 -> 8000 | L7: Ceiling Height Average
F8: =ROUND(1/F13,0) -> 13 | L8: =ROUND(L13,0) -> 9
B9: Building Component 2 R-value | C9: Building Component 2 Area | D9: Building Component 2 UA | H9: 2nd Ceiling Height | I9: Floor Area | J9: Building Area 2 Volume
B10: 0 | C10: 18 | D10: =C10/IF(B10=0,1,B10) -> 18 | H10: 10 | I10: 400 | J10: =I10*H10 -> 4000
B12: Building Component 3 R-value | C12: Building Component 3 Area | D12: Building Component 3 UA | F12: Assembly U-Factor | H12: 3rd Ceiling Height | I12: Floor Area | J12: Building Area 3 Volume | L12: Average Ceiling Height
D13: =C13/IF(B13=0,1,B13) -> 0 | F13: =(IF(D7=0,0,D7)+IF(D10=0,0,D10)+IF(D13=0,0,D13))/(IF(D7=0,0,C7)+IF(D10=0,0,C10)+IF(D13=0,0,C13)) -> 0.07619909502 | J13: =I13*H13 -> 0 | L13: =(IF(J7=0,0,J7)+IF(J10=0,0,J10)+IF(J13=0,0,J13))/(IF(J7=0,0,I7)+IF(J10=0,0,I10)+IF(J13=0,0,I13)) -> 8.571428571
B15: Instructions - R-value | H15: Instructions - Ceiling Height
B16: Use the Insulation De-rate calculator to determine batt insulation R-values to use above | H16: Enter Ceiling Height of each space in column A
B17: Use cavity insulation R-values | H17: Enter the floor area corresponding to each ceiling height in column B
B18: Enter the R-value for each building component in column A | H18: Enter the "Ceiling Height Average" in the Home Energy Scoring Tool
B19: Enter the area of the corresponding space with that R-value in colum B
B20: Enter the "Assembly R-value" in the Home Energy Scoring Tool
B21: Follow rules for choosing the appropriate value from the drop down lists in the Tool
B23: AFUE - Weighted Average | H23: HSPF/SEER - Weighted Average | N23: Energy Factor - Weighted Average
B24: Column A | C24: Column B | H24: Column A | I24: Column B | N24: Column A | O24: Column B
B25: HVAC System 1 Input | C25: HVAC System 1 Efficiency | D25: System Weighted Efficiency | H25: HVAC System 1 Output | I25: HVAC System 1 Efficiency | J25: System Weighted Efficiency | N25: DHW System 1 Input | O25: DHW System 1 Energy Factor | P25: System Weighted Energy Factor
B26: 100000 | C26: 0.85 | D26: =C26*B26 -> 85000 | F26: Combustion System Efficiency | H26: 36000 | I26: 7.5 | J26: =I26*H26 -> 270000 | L26: Heat Pump/AC Efficiency | N26: 4500 | O26: 0.87 | P26: =O26*N26 -> 3915 | R26: Energy Factor
F27: =(IF(D26=0,0,D26)+IF(D29=0,0,D29)+IF(D32=0,0,D32))/(IF(D26=0,0,B26)+IF(D29=0,0,B29)+IF(D32=0,0,B32)) -> 0.86875 | L27: =(IF(J26=0,0,J26)+IF(J29=0,0,J29)+IF(J32=0,0,J32))/(IF(J26=0,0,H26)+IF(J29=0,0,H29)+IF(J32=0,0,H32)) -> 7.78 | R27: =(IF(P26=0,0,P26)+IF(P29=0,0,P29)+IF(P32=0,0,P32))/(IF(P26=0,0,N26)+IF(P29=0,0,N29)+IF(P32=0,0,N32)) -> 0.663258427
B28: HVAC System 2 Input | C28: HVAC System 2 Efficiency | D28: System Weighted Efficiency | F28: =(D26+D29+D32)/(B26+B29+B32) -> 0.86875 | H28: HVAC System 2 Output | I28: HVAC System 2 Efficiency | J28: System Weighted Efficiency | L28: =(J26+J29+J32)/(H26+H29+H32) -> 7.78 | N28: DHW System 2 Input | O28: DHW System 2 Energy Factor | P28: System Weighted Energy Factor | R28: =(P26+P29+P32)/(N26+N29+N32) -> 0.663258427
B29: 60000 | C29: 0.9 | D29: =C29*B29 -> 54000 | H29: 24000 | I29: 8.2 | J29: =I29*H29 -> 196800 | N29: 40000 | O29: 0.64 | P29: =O29*N29 -> 25600
B31: HVAC System 3 Input | C31: HVAC System 3 Efficiency | D31: System Weighted Efficiency | H31: HVAC System 3 Output | I31: HVAC System 3 Efficiency | J31: System Weighted Efficiency | N31: HVAC System 3 Input | O31: DHW System 3 Energy Factor | P31: System Weighted Energy Factor
D32: =C32*B32 -> 0 | J32: =I32*H32 -> 0 | P32: =O32*N32 -> 0
B34: Instructions - AFUE | H34: Instructions - HSPF/SEER | N34: Instructions - Energy Factor
B35: Use the Equipment Efficiency Calculator to determine intial values to enter above | H35: Use the Equipment Efficiency Calculator to determine intial values to enter above | N35: Use the Equipment Efficiency Calculator to determine intial values to enter above
B36: Enter Combustion Heating System Fuel Input (on the equipment in btus or gallons) in column A | H36: Enter Heat Pump/AC size (in BTUs on the equipment) in column A | N36: Enter Water Heater System Input (on the equipment) in column A
B37: Enter the Combustion Heating System AFUE in column B | H37: Enter the HSPF or SEER in column B | N37: System Input can be BTU's or kWh but cannot be mixed
B38: Enter the "Combustion System Efficiency" in Home Energy Scoring Tool | H38: Enter the "Heat Pump/AC Efficiency" in the Home Energy Scoring Tool | N38: Enter the Energy Factor in column B
N39: Enter the "Energy Factor" in the Home Energy Scoring Tool

Sheet Insulation Derate Calculator
K2: Good | L2: Fair | M2: Poor
J3: Measured Batt Thickness | K3: Effective R-value (2.5 per inch) | L3: Effective R-value (1.8 per inch) | M3: Effective R-value (0.7 per inch)
A4: Choose Insulation | B4: Fiberglass | C4: =INDEX(Insul_calcs!$J$3:$J$12,MATCH(B4,Insul_calcs!$I$3:$I$12,0)) -> 2.5 | D4: =OR(B4="fiberglass",B4="cellulose",B4="rockwool") -> TRUE | F4: <= click cells to choose values | J4: 0 | K4: 0 | L4: 0 | M4: 0
A5: Choose Type | B5: Batt | D5: =IF(B5="Batt",TRUE,FALSE) -> TRUE | J5: 1 | K5: 3 | L5: 2 | M5: 1
A6: Installation Quality | B6: Fair | C6: =IF(D6=TRUE,0,IF(B6="",1,INDEX(Insul_calcs!$P$4:$P$6,MATCH(B6,batt,0)))) -> 0.72 | D6: =AND(B5="batt",B6="") -> FALSE | J6: 2 | K6: 5 | L6: 4 | M6: 1.5
A7: Enter Depth (inches) | B7: 6 | J7: 3 | K7: 8 | L7: 5 | M7: 2
J8: 4 | K8: 10 | L8: 7 | M8: 3
A9: De-Rated R-value | B9: =ROUND(C4*C6*B7,0) -> 11 | J9: 5 | K9: 13 | L9: 9 | M9: 3.5
J10: 6 | K10: 15 | L10: 11 | M10: 4
A11: If the cells above are green, a value must be entered. Red means, skip that cell. The colors may change as you change preceding cell values. | J11: 7 | K11: 18 | L11: 13 | M11: 5
J12: 8 | K12: 20 | L12: 14 | M12: 5.5
A13: Use the diagrams below to qualify the installation quality. | J13: 9 | K13: 23 | L13: 16 | M13: 6
A14: If there are multiple insulation depths, e.g. the blown insulation was not evenly applied or there are mulitple spaces with different amounts, use the Averaging Calculator to determine R-value | J14: 10 | K14: 25 | L14: 18 | M14: 7
J15: 11 | K15: 28 | L15: 20 | M15: 8
A16: If you cannot see the insulation, e.g. wall cavity, assume installation quality = poor | J16: 12 | K16: 30 | L16: 22 | M16: 8.5
J17: R-values based on fiberglass
A18: Good | F18: Fair
B34: Poor

Sheet Equipment Efficiency Calculator
B9: Choose System Type | E9: Enter This Efficiency into Home Energy Score for System Type Chosen
B10: Is the HVAC system well maintained?
B11: Enter system age (years) | C11: 6 | E11: =IF(ISBLANK(C12),"#N/A",VLOOKUP('Equipment Efficiency Calculator'!C11,INDIRECT(Eff_Calcs!AB7),Eff_Calcs!AD5,FALSE)) -> 6.872546408
B12: Enter installed efficiency (see tables) | C12: 8
B15: Starting Efficiencies
B16: Use the starting efficiencies listed below if you do not know the equipment efficiency.
B18: Air Condioners | E18: Heat Pump
B19: Installed Efficiency unless other data available | E19: Installed Efficiency unless other data available
B20: Current Energy Star | C20: 14.5 | E20: Current Energy Star | F20: 8.2
B21: 2006 or newer | C21: 13 | E21: 2006 or newer | F21: 8
B22: 1996 to 2005 | C22: 10 | E22: 1996 to 2005 | F22: 7.1
B23: Prior to 1996 | C23: 8 | E23: Prior to 1996 | F23: 6.6
B26: Gas/Propane Furnace or Boiler | E26: Oil Furnace or Boiler
B27: Installed Efficiency unless other data available | E27: Installed Efficiency unless other data available
B28: Condensing | C28: 0.9 | E28: Condensing | F28: 0.9
B29: Induced Draft | C29: 0.82 | E29: Retention Head Burner | F29: 0.8
B30: Natural Draft | C30: 0.78 | E30: Conventional Burner | F30: 0.72
B33: Default values for additional equipment - if efficiency is unknown - do no use calculator to derate these efficiencies
B35: Electric Resistance Heating | E35: Water Heater
B36: Electric Furnace | C36: 0.99 | E36: Gas - storage tank | F36: 0.55
B37: Baseboard Electric | C37: 0.99 | E37: Electric - storage tank | F37: 0.87
E38: Oil - storage tank | F38: 0.53
B39: Window A/C | C39: 9 | E39: Gas - instananeous | F39: 0.8
E40: Electric instantaneous | F40: 1

Sheet Insul_calcs (hidden)
C1: Good | D1: Fair | E1: Poor
B2: Measured Batt Thickness | C2: Effective R-value (2.5 per inch) | D2: Effective R-value (1.8 per inch) | E2: Effective R-value (0.7 per inch) | I2: Insulation | J2: R-value | L2: Insulation Type | O2: Installation Quality | P2: Multiplier
B3: 0 | C3: 0 | D3: 0 | E3: 0 | H3: 1 | I3: Select | J3: 0 | L3: Select | N3: 1 | O3: Select | R3: Blown
B4: 1 | C4: 3 | D4: 2 | E4: 1 | H4: 2 | I4: Cellulose | J4: 3.4 | L4: Batt | M4: 1 | N4: 2 | O4: Good | P4: 1
B5: 2 | C5: 5 | D5: 4 | E5: 1.5 | H5: 3 | I5: Fiberglass | J5: 2.5 | L5: Blown | N5: 3 | O5: Fair | P5: 0.72
B6: 3 | C6: 8 | D6: 5 | E6: 2 | H6: 4 | I6: Rockwool | J6: 3.1 | L6: Foam | N6: 4 | O6: Poor | P6: 0.28
B7: 4 | C7: 10 | D7: 7 | E7: 3 | H7: 5 | I7: Perlite | J7: 2.5 | L7: Pour
B8: 5 | C8: 13 | D8: 9 | E8: 3.5 | H8: 6 | I8: Vermiculite | J8: 2.2 | L8: Chosen Type | M8: 4 | O8: Chosen Quality | P8: 3
B9: 6 | C9: 15 | D9: 11 | E9: 4 | H9: 7 | I9: Polystyrene-large curd | J9: 4
B10: 7 | C10: 18 | D10: 13 | E10: 5 | H10: 8 | I10: Polystyrene-small curd | J10: 5 | P10: Multiplier
B11: 8 | C11: 20 | D11: 14 | E11: 5.5 | H11: 9 | I11: Polyurethane | J11: 6 | P11: =INDEX(P3:P6,MATCH(P8,N3:N6,0)) -> 0.72
B12: 9 | C12: 23 | D12: 16 | E12: 6 | H12: 10 | I12: Polyisocyanurate | J12: 6
B13: 10 | C13: 25 | D13: 18 | E13: 7 | K13: Rvalue/inch
B14: 11 | C14: 28 | D14: 20 | E14: 8
B15: 12 | C15: 30 | D15: 22 | E15: 8.5
B19: Cellulose | C19: Fiberglass | D19: Rockwool | L19: Choose Insulation | M19: Rockwool | N19: =INDEX(Insul_calcs!$J$3:$J$12,MATCH(M19,Insul_calcs!$I$3:$I$12,0)) -> 3.1
B20: Blown | C20: Blown | D20: Batt | L20: Choose Type | M20: Batt
B21: Batt | C21: Batt | L21: Installation Quality | M21: Good | N21: =IF(M21="N/A",1,INDEX(Insul_calcs!$P$4:$P$6,MATCH(M21,batt,0))) -> 1
L22: Enter Depth (inches) | M22: 10
B23: Vermiculite | C23: Perlite
M24: =N19*N21*M22 -> 31
B26: Pour | C26: Blown
B27: N/A

Sheet Eff_Calcs (hidden)
B2: 2 | N2: 3
B3: Natural Gas or Propane Furnace or Boiler | N3: Oil Furnace or Boiler
D4: Equipment Age | E4: Routinely Maintained | G4: Efficiency, if Routinely Maintained | I4: Rarely Maintained | K4: Efficiency, if Rarely Maintained | P4: Equipment Age | Q4: Routinely Maintained | S4: Efficiency, if Routinely Maintained | U4: Rarely Maintained | V4: Efficiency, if Rarely Maintained | W4: Efficiency, if Rarely Maintained | AB4: Equipment Type | AC4: 3
B5: Enter Installed Efficiency here ===> | C5: ='Equipment Efficiency Calculator'!C12 -> 8 | D5: 1 | E5: =(1-0.005)^D5 -> 0.995 | F5: =$C$5*E5 -> 7.96 | G5: =IF(F5>=0.65,F5,0.65) -> 7.96 | I5: =(1-0.015)^D5 -> 0.985 | J5: =$C$5*I5 -> 7.88 | K5: =IF(J5>=0.65,J5,0.65) -> 7.88 | N5: Enter Installed Efficiency here ===> | O5: ='Equipment Efficiency Calculator'!C12 -> 8 | P5: 1 | Q5: =(1-0.01)^P5 -> 0.99 | R5: =$O$5*Q5 -> 7.92 | S5: =IF(R5>=0.65,R5,0.65) -> 7.92 | U5: =(1-0.025)^P5 -> 0.975 | V5: =$O$5*U5 -> 7.8 | W5: =IF(V5>=0.65,V5,0.65) -> 7.8 | AB5: Maintained | AC5: 3 | AD5: =IF(AC5=2,4,8) -> 8
D6: 2 | E6: 0.990025 | F6: 7.9202 | G6: 7.9202 | I6: 0.970225 | J6: 7.7618 | K6: 7.7618 | P6: 2 | Q6: 0.9801 | R6: 7.8408 | S6: 7.8408 | U6: 0.950625 | V6: 7.605 | W6: 7.605
B7: Installed Efficiency unless other data available | D7: 3 | E7: 0.985074875 | F7: 7.880599 | G7: 7.880599 | I7: 0.955671625 | J7: 7.645373 | K7: 7.645373 | N7: Installed Efficiency unless other data available | P7: 3 | Q7: 0.970299 | R7: 7.762392 | S7: 7.762392 | U7: 0.926859375 | V7: 7.414875 | W7: 7.414875 | AB7: =INDEX(AC12:AC15,MATCH(AC4,AB12:AB15,0)) -> hp_table
B8: Condensing Furnace | C8: 0.9 | D8: 4 | E8: 0.9801495006 | F8: 7.841196005 | G8: 7.841196005 | I8: 0.9413365506 | J8: 7.530692405 | K8: 7.530692405 | N8: Retention Head Burner | O8: 0.8 | P8: 4 | Q8: 0.96059601 | R8: 7.68476808 | S8: 7.68476808 | U8: 0.9036878906 | V8: 7.229503125 | W8: 7.229503125
B9: Induced Draft Furnace | C9: 0.82 | D9: 5 | E9: 0.9752487531 | F9: 7.801990025 | G9: 7.801990025 | I9: 0.9272165024 | J9: 7.417732019 | K9: 7.417732019 | N9: Conventional Burner | O9: 0.72 | P9: 5 | Q9: 0.9509900499 | R9: 7.607920399 | S9: 7.607920399 | U9: 0.8810956934 | V9: 7.048765547 | W9: 7.048765547
B10: Natural Draft Furnace | C10: 0.78 | D10: 6 | E10: 0.9703725094 | F10: 7.762980075 | G10: 7.762980075 | I10: 0.9133082548 | J10: 7.306466039 | K10: 7.306466039 | P10: 6 | Q10: 0.9414801494 | R10: 7.531841195 | S10: 7.531841195 | U10: 0.859068301 | V10: 6.872546408 | W10: 6.872546408
D11: 7 | E11: 0.9655206468 | F11: 7.724165174 | G11: 7.724165174 | I11: 0.899608631 | J11: 7.196869048 | K11: 7.196869048 | P11: 7 | Q11: 0.9320653479 | R11: 7.456522783 | S11: 7.456522783 | U11: 0.8375915935 | V11: 6.700732748 | W11: 6.700732748 | AA11: System Type | AB11: 1 | AE11: Yes | AF11: 1
D12: 8 | E12: 0.9606930436 | F12: 7.685544349 | G12: 7.685544349 | I12: 0.8861145015 | J12: 7.088916012 | K12: 7.088916012 | P12: 8 | Q12: 0.9227446944 | R12: 7.381957555 | S12: 7.381957555 | U12: 0.8166518037 | V12: 6.533214429 | W12: 6.533214429 | AA12: Air Conditioner | AB12: 2 | AC12: ac_table | AE12: No | AF12: 2
D13: 9 | E13: 0.9558895784 | F13: 7.647116627 | G13: 7.647116627 | I13: 0.872822784 | J13: 6.982582272 | K13: 6.982582272 | P13: 9 | Q13: 0.9135172475 | R13: 7.30813798 | S13: 7.30813798 | U13: 0.7962355086 | V13: 6.369884069 | W13: 6.369884069 | AA13: Heat Pump | AB13: 3 | AC13: hp_table
D14: 10 | E14: 0.9511101305 | F14: 7.608881044 | G14: 7.608881044 | I14: 0.8597304423 | J14: 6.877843538 | K14: 6.877843538 | P14: 10 | Q14: 0.904382075 | R14: 7.2350566 | S14: 7.2350566 | U14: 0.7763296209 | V14: 6.210636967 | W14: 6.210636967 | AA14: Gas | AB14: 4 | AC14: gas_table
D15: 11 | E15: 0.9463545798 | F15: 7.570836639 | G15: 7.570836639 | I15: 0.8468344856 | J15: 6.774675885 | K15: 6.774675885 | P15: 11 | Q15: 0.8953382543 | R15: 7.162706034 | S15: 7.162706034 | U15: 0.7569213803 | V15: 6.055371043 | W15: 6.055371043 | AA15: Oil | AB15: 5 | AC15: oil_table
D16: 12 | E16: 0.9416228069 | F16: 7.532982455 | G16: 7.532982455 | I16: 0.8341319683 | J16: 6.673055747 | K16: 6.673055747 | P16: 12 | Q16: 0.8863848717 | R16: 7.091078974 | S16: 7.091078974 | U16: 0.7379983458 | V16: 5.903986767 | W16: 5.903986767
D17: 13 | E17: 0.9369146929 | F17: 7.495317543 | G17: 7.495317543 | I17: 0.8216199888 | J17: 6.572959911 | K17: 6.572959911 | P17: 13 | Q17: 0.877521023 | R17: 7.020168184 | S17: 7.020168184 | U17: 0.7195483872 | V17: 5.756387097 | W17: 5.756387097
D18: 14 | E18: 0.9322301194 | F18: 7.457840955 | G18: 7.457840955 | I18: 0.809295689 | J18: 6.474365512 | K18: 6.474365512 | P18: 14 | Q18: 0.8687458128 | R18: 6.949966502 | S18: 6.949966502 | U18: 0.7015596775 | V18: 5.61247742 | W18: 5.61247742
D19: 15 | E19: 0.9275689688 | F19: 7.420551751 | G19: 7.420551751 | I19: 0.7971562536 | J19: 6.377250029 | K19: 6.377250029 | P19: 15 | Q19: 0.8600583546 | R19: 6.880466837 | S19: 6.880466837 | U19: 0.6840206856 | V19: 5.472165485 | W19: 5.472165485
D20: 16 | E20: 0.922931124 | F20: 7.383448992 | G20: 7.383448992 | I20: 0.7851989098 | J20: 6.281591279 | K20: 6.281591279 | P20: 16 | Q20: 0.8514577711 | R20: 6.811662169 | S20: 6.811662169 | U20: 0.6669201684 | V20: 5.335361347 | W20: 5.335361347
D21: 17 | E21: 0.9183164684 | F21: 7.346531747 | G21: 7.346531747 | I21: 0.7734209262 | J21: 6.18736741 | K21: 6.18736741 | P21: 17 | Q21: 0.8429431934 | R21: 6.743545547 | S21: 6.743545547 | U21: 0.6502471642 | V21: 5.201977314 | W21: 5.201977314
D22: 18 | E22: 0.913724886 | F22: 7.309799088 | G22: 7.309799088 | I22: 0.7618196123 | J22: 6.094556898 | K22: 6.094556898 | P22: 18 | Q22: 0.8345137615 | R22: 6.676110092 | S22: 6.676110092 | U22: 0.6339909851 | V22: 5.071927881 | W22: 5.071927881
D23: 19 | E23: 0.9091562616 | F23: 7.273250093 | G23: 7.273250093 | I23: 0.7503923181 | J23: 6.003138545 | K23: 6.003138545 | P23: 19 | Q23: 0.8261686238 | R23: 6.609348991 | S23: 6.609348991 | U23: 0.6181412105 | V23: 4.945129684 | W23: 4.945129684
D24: 20 | E24: 0.9046104803 | F24: 7.236883842 | G24: 7.236883842 | I24: 0.7391364333 | J24: 5.913091467 | K24: 5.913091467 | P24: 20 | Q24: 0.8179069376 | R24: 6.543255501 | S24: 6.543255501 | U24: 0.6026876802 | V24: 4.821501442 | W24: 4.821501442
B27: 4 | N27: 5
B28: Air Conditioner | N28: Heat Pump
D29: Equipment Age | E29: Routinely Maintained | G29: Efficiency, if Routinely Maintained | I29: Rarely Maintained | K29: Efficiency, if Rarely Maintained | P29: Equipment Age | Q29: Routinely Maintained | S29: Efficiency, if Routinely Maintained | U29: Rarely Maintained | V29: Efficiency, if Rarely Maintained | W29: Efficiency, if Rarely Maintained
B30: Enter Installed Efficiency here ===> | C30: ='Equipment Efficiency Calculator'!C12 -> 8 | D30: 1 | E30: =(1-0.01)^D30 -> 0.99 | F30: =$C$30*E30 -> 7.92 | G30: =IF(F30>=6.5,F30,7) -> 7.92 | I30: =(1-0.025)^D30 -> 0.975 | J30: =$C$30*I30 -> 7.8 | K30: =IF(J30>=7,J30,7) -> 7.8 | N30: Enter Installed Efficiency here ===> | O30: ='Equipment Efficiency Calculator'!C12 -> 8 | P30: 1 | Q30: =(1-0.01)^P30 -> 0.99 | R30: =$O$30*Q30 -> 7.92 | S30: =IF(R30>=6.5,R30,6.5) -> 7.92 | U30: =(1-0.025)^P30 -> 0.975 | V30: =$O$30*U30 -> 7.8 | W30: =IF(V30>=6,V30,6) -> 7.8
D31: 2 | E31: 0.9801 | F31: 7.8408 | G31: 7.8408 | I31: 0.950625 | J31: 7.605 | K31: 7.605 | P31: 2 | Q31: 0.9801 | R31: 7.8408 | S31: 7.8408 | U31: 0.950625 | V31: 7.605 | W31: 7.605
B32: Installed Efficiency unless other data available | D32: 3 | E32: 0.970299 | F32: 7.762392 | G32: 7.762392 | I32: 0.926859375 | J32: 7.414875 | K32: 7.414875 | N32: Installed Efficiency unless other data available | P32: 3 | Q32: 0.970299 | R32: 7.762392 | S32: 7.762392 | U32: 0.926859375 | V32: 7.414875 | W32: 7.414875
B33: Current Energy Star | C33: 14.5 | D33: 4 | E33: 0.96059601 | F33: 7.68476808 | G33: 7.68476808 | I33: 0.9036878906 | J33: 7.229503125 | K33: 7.229503125 | N33: Current Energy Star | O33: 8.2 | P33: 4 | Q33: 0.96059601 | R33: 7.68476808 | S33: 7.68476808 | U33: 0.9036878906 | V33: 7.229503125 | W33: 7.229503125
B34: 2006 or newer | C34: 13 | D34: 5 | E34: 0.9509900499 | F34: 7.607920399 | G34: 7.607920399 | I34: 0.8810956934 | J34: 7.048765547 | K34: 7.048765547 | N34: 2006 or newer | O34: 8 | P34: 5 | Q34: 0.9509900499 | R34: 7.607920399 | S34: 7.607920399 | U34: 0.8810956934 | V34: 7.048765547 | W34: 7.048765547
B35: 1996 to 2006 | C35: 10 | D35: 6 | E35: 0.9414801494 | F35: 7.531841195 | G35: 7.531841195 | I35: 0.859068301 | J35: 6.872546408 | K35: 7 | N35: 1996 to 2006 | O35: 7.1 | P35: 6 | Q35: 0.9414801494 | R35: 7.531841195 | S35: 7.531841195 | U35: 0.859068301 | V35: 6.872546408 | W35: 6.872546408
B36: Prior to 1996 | C36: 8 | D36: 7 | E36: 0.9320653479 | F36: 7.456522783 | G36: 7.456522783 | I36: 0.8375915935 | J36: 6.700732748 | K36: 7 | N36: Prior to 1996 | O36: 6.6 | P36: 7 | Q36: 0.9320653479 | R36: 7.456522783 | S36: 7.456522783 | U36: 0.8375915935 | V36: 6.700732748 | W36: 6.700732748
D37: 8 | E37: 0.9227446944 | F37: 7.381957555 | G37: 7.381957555 | I37: 0.8166518037 | J37: 6.533214429 | K37: 7 | P37: 8 | Q37: 0.9227446944 | R37: 7.381957555 | S37: 7.381957555 | U37: 0.8166518037 | V37: 6.533214429 | W37: 6.533214429
D38: 9 | E38: 0.9135172475 | F38: 7.30813798 | G38: 7.30813798 | I38: 0.7962355086 | J38: 6.369884069 | K38: 7 | P38: 9 | Q38: 0.9135172475 | R38: 7.30813798 | S38: 7.30813798 | U38: 0.7962355086 | V38: 6.369884069 | W38: 6.369884069
D39: 10 | E39: 0.904382075 | F39: 7.2350566 | G39: 7.2350566 | I39: 0.7763296209 | J39: 6.210636967 | K39: 7 | P39: 10 | Q39: 0.904382075 | R39: 7.2350566 | S39: 7.2350566 | U39: 0.7763296209 | V39: 6.210636967 | W39: 6.210636967
D40: 11 | E40: 0.8953382543 | F40: 7.162706034 | G40: 7.162706034 | I40: 0.7569213803 | J40: 6.055371043 | K40: 7 | P40: 11 | Q40: 0.8953382543 | R40: 7.162706034 | S40: 7.162706034 | U40: 0.7569213803 | V40: 6.055371043 | W40: 6.055371043
D41: 12 | E41: 0.8863848717 | F41: 7.091078974 | G41: 7.091078974 | I41: 0.7379983458 | J41: 5.903986767 | K41: 7 | P41: 12 | Q41: 0.8863848717 | R41: 7.091078974 | S41: 7.091078974 | U41: 0.7379983458 | V41: 5.903986767 | W41: 6
D42: 13 | E42: 0.877521023 | F42: 7.020168184 | G42: 7.020168184 | I42: 0.7195483872 | J42: 5.756387097 | K42: 7 | P42: 13 | Q42: 0.877521023 | R42: 7.020168184 | S42: 7.020168184 | U42: 0.7195483872 | V42: 5.756387097 | W42: 6
D43: 14 | E43: 0.8687458128 | F43: 6.949966502 | G43: 6.949966502 | I43: 0.7015596775 | J43: 5.61247742 | K43: 7 | P43: 14 | Q43: 0.8687458128 | R43: 6.949966502 | S43: 6.949966502 | U43: 0.7015596775 | V43: 5.61247742 | W43: 6
D44: 15 | E44: 0.8600583546 | F44: 6.880466837 | G44: 6.880466837 | I44: 0.6840206856 | J44: 5.472165485 | K44: 7 | P44: 15 | Q44: 0.8600583546 | R44: 6.880466837 | S44: 6.880466837 | U44: 0.6840206856 | V44: 5.472165485 | W44: 6
D45: 16 | E45: 0.8514577711 | F45: 6.811662169 | G45: 6.811662169 | I45: 0.6669201684 | J45: 5.335361347 | K45: 7 | P45: 16 | Q45: 0.8514577711 | R45: 6.811662169 | S45: 6.811662169 | U45: 0.6669201684 | V45: 5.335361347 | W45: 6
D46: 17 | E46: 0.8429431934 | F46: 6.743545547 | G46: 6.743545547 | I46: 0.6502471642 | J46: 5.201977314 | K46: 7 | P46: 17 | Q46: 0.8429431934 | R46: 6.743545547 | S46: 6.743545547 | U46: 0.6502471642 | V46: 5.201977314 | W46: 6
D47: 18 | E47: 0.8345137615 | F47: 6.676110092 | G47: 6.676110092 | I47: 0.6339909851 | J47: 5.071927881 | K47: 7 | P47: 18 | Q47: 0.8345137615 | R47: 6.676110092 | S47: 6.676110092 | U47: 0.6339909851 | V47: 5.071927881 | W47: 6
D48: 19 | E48: 0.8261686238 | F48: 6.609348991 | G48: 6.609348991 | I48: 0.6181412105 | J48: 4.945129684 | K48: 7 | P48: 19 | Q48: 0.8261686238 | R48: 6.609348991 | S48: 6.609348991 | U48: 0.6181412105 | V48: 4.945129684 | W48: 6
D49: 20 | E49: 0.8179069376 | F49: 6.543255501 | G49: 6.543255501 | I49: 0.6026876802 | J49: 4.821501442 | K49: 7 | P49: 20 | Q49: 0.8179069376 | R49: 6.543255501 | S49: 6.543255501 | U49: 0.6026876802 | V49: 4.821501442 | W49: 6
B52: Building America House Simulation Protocols October 2010
